bitfinex-derivatives/quotes_BTCF0:USTF0_20210705
["timestamp","ask_amount","ask_price","bid_price","bid_amount"]
[1625509560185,0.24057544,33998.0,33992.0,0.059]
[1625509560380,0.24057544,33998.0,33992.0,0.41422]
[1625509560482,0.9512,34000.0,33992.0,0.41422]
[1625509560683,0.9512,34000.0,33999.0,0.72172632]
[1625509560794,0.9512,34000.0,33999.0,0.98993632]
[1625509560884,0.9512,34000.0,33999.0,1.04893632]
[1625509560982,0.9512,34000.0,33999.0,1.01955696]
[1625509561084,0.8922,34000.0,33999.0,1.01955696]
[1625509561282,0.8922,34000.0,33999.0,4.59155696]
[1625509561384,0.24057544,34010.0,33999.0,4.59155696]
[1625509561493,0.24057544,34010.0,33999.0,4.68205696]
[1625509561781,0.24057544,34010.0,34000.0,0.02961743]
[1625509561881,0.9731,34038.0,34000.0,0.02961743]
[1625509561984,0.9731,34038.0,34000.0,0.58657343]
[1625509562084,0.119,34033.0,34000.0,0.58657343]
[1625509562185,0.001,34033.0,34000.0,0.58657343]
[1625509562282,0.06,34033.0,34001.0,0.01219402]
[1625509562485,0.001,34033.0,34001.0,0.13019402]
[1625509562584,0.001,34033.0,34002.0,0.443312]
[1625509562683,0.24057544,34032.0,34031.0,0.24057544]
[1625509562783,0.24057544,34032.0,34031.0,0.55948544]
[1625509562886,0.35857544,34032.0,34031.0,0.55948544]
[1625509563082,0.35857544,34032.0,34031.0,0.57167849]
[1625509563284,0.29957544,34032.0,34031.0,0.57167849]
[1625509563383,0.35857544,34032.0,34031.0,0.57167849]
[1625509563485,0.29957544,34032.0,34031.0,0.57167849]
[1625509563586,0.35857544,34032.0,34031.0,0.57167849]
[1625509564135,0.35857544,34032.0,34031.0,0.25276849]
[1625509564285,0.35857544,34032.0,34031.0,0.01219305]
[1625509564386,0.35857544,34032.0,34031.0,0.00348373]
[1625509564693,0.35857544,34032.0,34028.0,0.01219386]
[1625509565292,0.35857544,34032.0,34028.0,0.00348396]
[1625509565490,0.57444544,34032.0,34028.0,0.00348396]
[1625509565588,0.57444544,34032.0,34029.0,0.0034834]
[1625509565888,0.57444544,34032.0,34027.0,0.24057544]
[1625509565889,0.57444544,34032.0,34028.0,0.00348342]
[1625509566141,0.57444544,34032.0,34025.0,0.00348374]
[1625509566272,0.57444544,34032.0,34020.0,0.24057544]
[1625509566641,0.57444544,34032.0,34021.0,0.00348407]
[1625509566841,0.63144544,34032.0,34021.0,0.00348407]
[1625509566942,0.57444544,34032.0,34017.0,0.00348411]
[1625509567140,0.57444544,34032.0,34022.0,0.00348433]
[1625509567241,0.05551567,34022.0,34011.0,0.24057544]
[1625509567442,0.37863567,34022.0,34011.0,0.24057544]
[1625509567542,0.43763567,34022.0,34011.0,0.24057544]
[1625509567741,0.43763567,34022.0,34012.0,0.00348444]
[1625509568648,0.72172632,34013.0,34012.0,0.00348444]
[1625509568747,1.05842632,34013.0,34012.0,0.00348444]
[1625509568846,1.11742632,34013.0,34012.0,0.00348444]
[1625509568946,1.17642632,34013.0,34012.0,0.00348444]
[1625509569049,1.17642632,34013.0,34004.0,0.48115088]
[1625509569050,1.17642632,34013.0,34005.0,0.00348436]
[1625509569347,1.17642632,34013.0,34012.0,0.00348445]
[1625509569547,1.17642632,34013.0,34006.0,0.00348464]
[1625509569647,1.17642632,34013.0,34004.0,0.24057544]
[1625509570109,1.17642632,34013.0,34005.0,0.00348492]
[1625509570798,0.48115088,34006.0,34005.0,0.00348492]
[1625509570902,0.85746088,34006.0,34005.0,0.00348492]
[1625509571000,0.91646088,34006.0,34005.0,0.00348492]
[1625509571214,0.85746088,34006.0,34005.0,0.00348492]
[1625509571459,0.91646088,34006.0,34005.0,0.00348492]
[1625509571702,0.91646088,34006.0,34004.0,0.24057544]
[1625509572211,0.91646088,34006.0,34005.0,0.00348507]
[1625509573659,0.91646088,34006.0,34004.0,0.24057544]
[1625509574460,0.91746088,34006.0,34004.0,0.24057544]
[1625509575863,0.91746088,34006.0,34000.0,0.24057544]
[1625509575963,0.91746088,34006.0,33997.0,0.72485611]
[1625509576166,0.91746088,34006.0,33997.0,0.24057544]
[1625509576521,0.91746088,34006.0,33996.0,0.48440395]
[1625509576617,0.91746088,34006.0,33994.0,0.48509745]
[1625509576818,0.72172632,33995.0,33994.0,0.48509745]
[1625509576915,1.07390632,33995.0,33994.0,0.48509745]
[1625509577016,1.13290632,33995.0,33994.0,0.48509745]
[1625509577215,1.13290632,33995.0,33992.0,0.88896218]
[1625509577216,1.13290632,33995.0,33992.0,1.37525224]
[1625509577717,1.13290632,33995.0,33990.0,0.97258011]
[1625509577718,1.13290632,33995.0,33991.0,0.48643743]
[1625509578820,0.24057544,33993.0,33990.0,0.486537]
[1625509579017,0.35857544,33993.0,33990.0,0.486537]
[1625509579269,0.35857544,33993.0,33989.0,0.48739908]
[1625509579569,0.29957544,33993.0,33989.0,0.48739908]
[1625509579668,0.29957544,33993.0,33990.0,0.48732965]
[1625509579781,0.24057544,33993.0,33990.0,0.71477965]
[1625509580069,0.24057544,33993.0,33992.0,2.10951715]
[1625509580720,0.24057544,33993.0,33992.0,3.2444876]
[1625509580821,0.24057544,33993.0,33992.0,3.48506304]
[1625509581222,0.24057544,33993.0,33992.0,4.78599588]
[1625509582525,0.24057544,33993.0,33992.0,6.2449918]
[1625509583476,0.29957544,33993.0,33992.0,4.78599588]
[1625509583576,0.38837544,33993.0,33992.0,4.78599588]
[1625509583676,0.29957544,33993.0,33992.0,4.78599588]
[1625509583775,0.35857544,33993.0,33992.0,4.78599588]
[1625509583879,0.35857544,33993.0,33992.0,4.78251041]
[1625509584879,0.29957544,33993.0,33992.0,4.78251041]
[1625509585280,0.35857544,33993.0,33992.0,4.78251041]
[1625509585500,0.66759544,33993.0,33992.0,4.78251041]
[1625509585695,0.66759544,33993.0,33992.0,2.35009259]
[1625509586435,0.66759544,33993.0,33992.0,2.10951715]
[1625509586733,0.66759544,33993.0,33992.0,1.13589385]
[1625509586933,0.90817088,33993.0,33992.0,1.13589385]
[1625509587135,0.90817088,33993.0,33990.0,0.32358046]
[1625509587435,0.90817088,33993.0,33991.0,0.32349679]
[1625509587835,0.90817088,33993.0,33992.0,0.32332303]
[1625509588394,0.90817088,33993.0,33992.0,0.48489041]
[1625509588714,0.59915088,33993.0,33992.0,0.48489041]
[1625509588818,0.48115088,33993.0,33992.0,0.48489041]
[1625509588991,0.48115088,33993.0,33992.0,0.56383715]
[1625509589092,0.54015088,33993.0,33992.0,0.56383715]
[1625509589188,0.48115088,33993.0,33992.0,0.56383715]
[1625509589288,0.48115088,33993.0,33992.0,4.76177086]
[1625509589589,0.54015088,33993.0,33992.0,4.76177086]
[1625509589690,0.48115088,33993.0,33992.0,4.76177086]
[1625509589892,0.54015088,33993.0,33992.0,4.76177086]
[1625509590092,0.54015088,33993.0,33992.0,3.47099667]
[1625509590393,0.24057544,33993.0,33992.0,3.47099667]
[1625509590495,0.24057544,33993.0,33992.0,4.76351046]
[1625509590996,0.24057544,33993.0,33992.0,6.21403323]
[1625509591245,0.23907544,33993.0,33992.0,6.21403323]
[1625509591444,0.23907544,33993.0,33992.0,6.27303323]
[1625509592047,0.23907544,33993.0,33992.0,6.28332561]
[1625509592196,0.23907544,33993.0,33992.0,6.27303323]
[1625509592397,0.23907544,33993.0,33992.0,6.28333185]
[1625509592597,0.23907544,33993.0,33992.0,6.27303323]
[1625509593098,0.48115088,34002.0,33992.0,6.27303323]
[1625509593198,0.54015088,34002.0,33992.0,6.27303323]
[1625509593354,0.54015088,34002.0,33993.0,0.01029775]
[1625509593500,5.088e-05,34002.0,33993.0,0.01029775]
[1625509593599,0.001,34006.0,33993.0,0.13178269]
[1625509593700,0.001,34006.0,34001.0,3.22526049]
[1625509593803,0.001,34006.0,34001.0,3.48944049]
[1625509593900,0.001,34006.0,34001.0,3.60744049]
[1625509594102,0.001,34006.0,34002.0,0.00348453]
[1625509594300,0.001,34006.0,34005.0,4.51107015]
[1625509594500,0.001,34006.0,34005.0,4.57007015]
[1625509594702,0.001,34006.0,34005.0,4.57355447]
[1625509594802,0.86544139,34019.0,34005.0,4.57355447]
[1625509594905,0.34617465,34018.0,34005.0,4.57355447]
[1625509595003,0.40517465,34018.0,34017.0,0.72172632]
[1625509595303,0.059,34018.0,34017.0,0.72172632]
[1625509596208,0.118,34018.0,34017.0,0.72172632]
[1625509597059,0.059,34018.0,34017.0,0.72172632]
[1625509597510,0.118,34018.0,34017.0,0.72172632]
[1625509598067,0.059,34018.0,34017.0,0.72172632]
[1625509598421,0.118,34018.0,34017.0,0.72172632]
[1625509598515,0.059,34018.0,34017.0,0.72172632]
[1625509598616,0.118,34018.0,34017.0,0.72172632]
[1625509598716,0.059,34018.0,34017.0,0.72172632]
[1625509599668,0.118,34018.0,34017.0,0.72172632]
[1625509601070,0.059,34018.0,34017.0,0.72172632]
[1625509601171,0.24057544,34019.0,34017.0,0.72172632]
[1625509601322,0.29957544,34019.0,34017.0,0.72172632]
[1625509603473,0.35857544,34019.0,34017.0,0.72172632]
[1625509603774,0.29957544,34019.0,34017.0,0.72172632]
[1625509603975,0.35857544,34019.0,34017.0,0.72172632]
[1625509604388,0.29957544,34019.0,34010.0,0.53557028]
[1625509604495,0.58942544,34019.0,34010.0,0.53557028]
[1625509605076,0.72172632,34011.0,34010.0,0.53557028]
[1625509605177,1.08813632,34011.0,34002.0,0.9720796]
[1625509605277,1.14713632,34011.0,34002.0,0.9720796]
[1625509605678,1.14713632,34011.0,34000.0,0.97273559]
[1625509605877,1.08813632,34011.0,34000.0,0.97273559]
[1625509605976,1.08813632,34011.0,34000.0,1.03173559]
[1625509606178,1.14713632,34011.0,34000.0,0.97273559]
[1625509606278,1.14713632,34011.0,34001.0,0.97183998]
[1625509606779,1.14713632,34011.0,33999.0,0.97268878]
[1625509607182,0.95262632,34000.0,33999.0,0.97268878]
[1625509607282,1.01162632,34000.0,33999.0,0.97268878]
[1625509607382,1.01162632,34000.0,33995.0,0.97264369]
[1625509607582,1.01162632,34000.0,33995.0,1.03164369]
[1625509608538,1.01162632,34000.0,33995.0,0.059]
[1625509609052,0.78072632,34000.0,33995.0,0.059]
[1625509609142,0.24057544,33996.0,33995.0,0.059]
[1625509609347,0.29957544,33996.0,33995.0,0.059]
[1625509609439,0.29957544,33996.0,33995.0,0.0624854]
[1625509609536,0.29957544,33996.0,33995.0,2.16840937]
[1625509609640,0.24057544,33996.0,33995.0,2.16840937]
[1625509610687,0.29957544,33996.0,33995.0,2.16840937]
[1625509610815,0.24057544,33996.0,33995.0,2.16840937]
[1625509611290,0.24057544,33996.0,33995.0,1.03445031]
[1625509611801,0.29957544,33996.0,33995.0,1.03445031]
[1625509612143,0.29957544,33996.0,33995.0,1.03096491]
[1625509612442,0.29957544,33996.0,33995.0,1.03445057]
[1625509614498,0.24057544,33996.0,33995.0,1.03445057]
[1625509614601,0.24057544,33996.0,33995.0,1.33423057]
[1625509614935,0.24057544,33996.0,33995.0,1.42243057]
[1625509615020,0.48115088,34000.0,33995.0,5.21058844]
[1625509615098,0.48115088,34000.0,33996.0,0.087]
[1625509615216,0.48115088,34000.0,33999.0,0.48115088]
[1625509615301,0.48115088,34000.0,33999.0,0.54015088]
[1625509615401,0.48115088,34000.0,33999.0,0.59915088]
[1625509615553,0.48115088,34000.0,33999.0,5.43793172]
[1625509615651,0.48115088,34000.0,33999.0,5.44141614]
[1625509616001,0.24057544,34008.0,33999.0,5.44141614]
[1625509616402,0.24057544,34008.0,34000.0,0.00348439]
[1625509616502,0.24057544,34008.0,34000.0,0.12148439]
[1625509616603,0.24057544,34008.0,34007.0,0.96753789]
[1625509616710,0.24057544,34008.0,34007.0,1.02653789]
[1625509616933,0.29957544,34008.0,34007.0,1.02653789]
[1625509617113,0.29957544,34008.0,34007.0,0.96753789]
[1625509617229,0.78072632,34008.0,34007.0,0.96753789]
[1625509617308,0.83972632,34008.0,34007.0,0.96753789]
[1625509617507,0.83972632,34008.0,34006.0,1.12879421]
[1625509617608,1.17865632,34008.0,34003.0,0.16171471]
[1625509618109,1.11965632,34008.0,34003.0,0.16171471]
[1625509618858,1.11965632,34008.0,34003.0,0.22071471]
[1625509618961,1.11965632,34008.0,34003.0,0.16171471]
[1625509619168,0.24057544,34004.0,34003.0,0.16171471]
[1625509619362,0.29957544,34004.0,34002.0,0.97055531]
[1625509619563,0.29957544,34004.0,34003.0,0.00348492]
[1625509619864,0.24057544,34004.0,34003.0,0.059]
[1625509620163,0.24057544,34004.0,34003.0,0.27349479]
[1625509620493,0.29957544,34004.0,34003.0,0.21449479]
[1625509620678,0.29957544,34004.0,34003.0,1.1854474]
[1625509620918,0.29737011,34004.0,34003.0,1.18196261]
[1625509621120,0.29737011,34004.0,34003.0,0.37297809]
[1625509621219,0.29737011,34004.0,34003.0,0.16196809]
[1625509621621,0.29737011,34004.0,34001.0,0.1619827]
[1625509621720,0.62025011,34004.0,34001.0,0.1619827]
[1625509622175,0.62025011,34004.0,33998.0,0.97189622]
[1625509622574,0.62025011,34004.0,33997.0,0.97225331]
[1625509622773,0.62025011,34004.0,33997.0,1.03125331]
[1625509623026,0.62025011,34004.0,33998.0,0.00348539]
[1625509623225,0.72172632,33999.0,33998.0,0.00348539]
[1625509623425,0.78072632,33999.0,33998.0,0.00348539]
[1625509623626,0.78072632,33999.0,33997.0,0.97225331]
[1625509623725,0.78072632,33999.0,33997.0,1.03125331]
[1625509623827,0.78072632,33999.0,33997.0,0.059]
[1625509624026,0.78072632,33999.0,33996.0,0.97075751]
[1625509624326,0.78072632,33999.0,33995.0,0.97080885]
[1625509624681,0.78072632,33999.0,33994.0,0.97194845]
[1625509625278,0.24057544,33995.0,33994.0,0.97194845]
[1625509625378,0.51173544,33995.0,33994.0,0.97194845]
[1625509625578,0.57073544,33995.0,33994.0,0.97194845]
[1625509625982,0.57073544,33995.0,33992.0,0.97309761]
[1625509626479,0.57073544,33995.0,33993.0,0.97368379]
[1625509626879,0.57073544,33995.0,33992.0,0.97375836]
[1625509627034,0.51173544,33995.0,33992.0,0.97375836]
[1625509627279,0.48115088,33993.0,33992.0,0.97375836]
[1625509627381,0.54015088,33993.0,33992.0,0.97375836]
[1625509628796,0.54015088,33993.0,33991.0,0.97425639]
[1625509629033,0.59915088,33993.0,33991.0,0.97425639]
[1625509629286,0.54015088,33993.0,33991.0,0.97425639]
[1625509629485,0.54015088,33993.0,33992.0,0.00348594]
[1625509629595,0.54015088,33993.0,33992.0,0.97671064]
[1625509630136,0.48115088,33993.0,33992.0,0.97671064]
[1625509630236,0.54015088,33993.0,33992.0,0.97671064]
[1625509630337,0.54015088,33993.0,33991.0,0.73573946]
[1625509630463,0.93898088,33993.0,33986.0,0.06363706]
[1625509630785,0.93898088,33993.0,33981.0,0.68547823]
[1625509630808,0.99598088,33993.0,33981.0,0.68547823]
[1625509630860,0.99598088,33993.0,33988.0,1.29685412]
[1625509630987,0.01587965,33992.0,33988.0,1.26185412]
[1625509631042,4.6869,33990.0,33988.0,1.14385412]
[1625509631241,4.6869,33990.0,33988.0,1.00735412]
[1625509631338,0.48115088,33989.0,33988.0,1.00735412]
[1625509631437,0.4970722,33989.0,33988.0,0.60105412]
[1625509631538,0.5560722,33989.0,33984.0,1.45896089]
[1625509631637,0.6150722,33989.0,33984.0,1.45896089]
[1625509631739,0.057,33988.0,33964.0,1.46829938]
[1625509631839,0.116,33988.0,33964.0,1.46829938]
[1625509631939,0.01592125,33987.0,33965.0,0.00348796]
[1625509632037,0.07492125,33987.0,33965.0,0.00348796]
[1625509632138,0.01592125,33987.0,33965.0,0.06248796]
[1625509632241,1.56037849,33985.0,33965.0,0.06248796]
[1625509632339,1.56037849,33985.0,33965.0,0.00348796]
[1625509632444,1.56037849,33985.0,33968.0,4.5162]
[1625509632640,0.32688,33985.0,33968.0,4.5162]
[1625509632740,0.32688,33985.0,33969.0,0.01038223]
[1625509632941,0.32688,33985.0,33971.0,1.46363074]
[1625509633042,0.32688,33985.0,33971.0,1.68551074]
[1625509633142,0.32688,33985.0,33972.0,0.01037444]
[1625509633241,0.32688,33985.0,33972.0,0.06937444]
[1625509633341,0.24057544,33978.0,33976.0,0.24057544]
[1625509633442,0.24057544,33978.0,33976.0,0.29957544]
[1625509633542,0.24057544,33978.0,33977.0,0.00348669]
[1625509633742,0.24057544,33978.0,33977.0,0.06248669]
[1625509633842,0.22257544,33978.0,33977.0,0.06248669]
[1625509633942,0.22257544,33978.0,33977.0,1.52343861]
[1625509634646,0.22257544,33978.0,33977.0,1.78701861]
[1625509634748,0.16357544,33978.0,33977.0,1.72801861]
[1625509634850,0.16357544,33978.0,33977.0,0.32606669]
[1625509635149,0.16357544,33978.0,33977.0,0.33641934]
[1625509635545,0.16357544,33978.0,33977.0,1.79551877]
[1625509635849,0.16357544,33978.0,33977.0,1.78516612]
[1625509636047,0.16357544,33978.0,33977.0,1.79551979]
[1625509638752,0.16357544,33978.0,33977.0,1.7920331]
[1625509639053,0.16357544,33978.0,33977.0,1.79551943]
[1625509640008,0.10457544,33978.0,33977.0,1.79551943]
[1625509640307,0.10457544,33978.0,33977.0,1.85451943]
[1625509643519,0.48115088,33989.0,33977.0,1.85451943]
[1625509643719,0.48115088,33989.0,33977.0,1.84416576]
[1625509643818,0.48115088,33989.0,33978.0,0.00348621]
[1625509643918,0.48115088,33989.0,33981.0,1.45482828]
[1625509644019,0.48115088,33989.0,33981.0,1.51382828]
[1625509644119,0.48115088,33989.0,33981.0,1.57282828]
[1625509644319,0.48115088,33989.0,33982.0,0.00348621]
[1625509644418,0.48115088,33989.0,33982.0,0.06248621]
[1625509644519,0.48115088,33989.0,33982.0,0.12148621]
[1625509644871,0.48115088,33989.0,33983.0,0.00348618]
[1625509644972,0.48115088,33989.0,33983.0,0.06248618]
[1625509645070,0.48115088,33989.0,33983.0,0.12148618]
[1625509645474,0.48115088,33989.0,33985.0,0.24057544]
[1625509645922,0.48115088,33989.0,33986.0,0.00348616]
[1625509646129,0.48115088,33989.0,33986.0,0.06248616]
[1625509646524,0.48115088,33989.0,33987.0,0.00348626]
[1625509646623,0.48115088,33989.0,33987.0,0.06248626]
[1625509647074,0.48115088,33989.0,33988.0,0.00348624]
[1625509647175,0.48115088,33989.0,33988.0,0.06248624]
[1625509647476,0.48115088,33989.0,33988.0,0.12148624]
[1625509647576,0.48115088,33989.0,33988.0,0.06248624]
[1625509647778,0.48115088,33989.0,33988.0,0.00348624]
[1625509647878,0.48115088,33989.0,33986.0,0.00348626]
[1625509647975,0.76875088,33989.0,33986.0,0.00348626]
[1625509648878,0.76875088,33989.0,33986.0,0.06248626]
[1625509648979,0.76875088,33989.0,33986.0,0.00348626]
[1625509649082,0.76875088,33989.0,33986.0,0.06248626]
[1625509649181,0.48115088,33989.0,33986.0,0.12148626]
[1625509649285,0.48115088,33989.0,33987.0,0.00348629]
[1625509649383,0.48115088,33989.0,33987.0,0.41269629]
[1625509649833,0.48115088,33989.0,33988.0,0.00348608]
[1625509650130,0.48115088,33989.0,33988.0,0.06248608]
[1625509651184,0.48115088,33989.0,33988.0,0.12148608]
[1625509651285,0.48115088,33989.0,33988.0,0.06248608]
[1625509652588,0.48115088,33989.0,33988.0,0.12148608]
[1625509652687,0.48115088,33989.0,33988.0,0.06248608]
[1625509652840,0.48115088,33989.0,33988.0,0.12148608]
[1625509652940,0.48115088,33989.0,33988.0,0.43894608]
[1625509653638,0.48115088,33989.0,33988.0,0.37994608]
[1625509654140,0.08661326,33999.0,33988.0,0.37994608]
[1625509654341,1.21033821,34004.0,33988.0,0.37994608]
[1625509654342,0.08661128,33997.0,33988.0,0.43894608]
[1625509654540,0.08661128,33997.0,33989.0,0.003486]
[1625509654641,0.08661128,33997.0,33989.0,0.062486]
[1625509654741,0.08662775,34000.0,33992.0,0.08090772]
[1625509654940,0.08662775,34000.0,33992.0,0.19890772]
[1625509655141,0.08662775,34000.0,33993.0,0.08438506]
[1625509655240,0.08662775,34000.0,33993.0,0.14338506]
[1625509655341,0.08662775,34000.0,33993.0,0.20238506]
[1625509655443,0.08662775,34000.0,33994.0,0.00348591]
[1625509655542,0.24057544,33999.0,33998.0,0.24057544]
[1625509655641,0.29757544,33999.0,33998.0,0.24057544]
[1625509656794,0.24057544,33999.0,33998.0,0.24057544]
[1625509656893,0.24057544,33999.0,33998.0,0.29957544]
[1625509656993,0.24057544,33999.0,33998.0,0.30306119]
[1625509659448,0.29757544,33999.0,33998.0,0.30306119]
[1625509661352,0.24057544,33999.0,33998.0,0.30306119]
[1625509662254,0.24057544,33999.0,33998.0,0.38401689]
[1625509662581,0.08673636,34001.0,33998.0,0.74903689]
[1625509663156,1.45263385,34006.0,33998.0,0.74903689]
[1625509663157,0.24057544,34006.0,34000.0,0.96997698]
[1625509663255,0.24057544,34006.0,34000.0,1.08797698]
[1625509663502,0.24057544,34006.0,34004.0,0.0808263]
[1625509663603,0.24057544,34006.0,34005.0,0.48115088]
[1625509663703,0.24057544,34006.0,34005.0,0.80382088]
[1625509663904,0.24057544,34006.0,34005.0,0.86630602]
[1625509664256,0.24057544,34006.0,34005.0,0.94722138]
[1625509665155,0.24057544,34006.0,34005.0,1.00622138]
[1625509665354,0.24057544,34006.0,34005.0,0.94722138]
[1625509665455,0.24057544,34006.0,34005.0,0.86630602]
[1625509665555,0.29757544,34006.0,34005.0,0.54363602]
[1625509665956,0.24057544,34006.0,34005.0,0.54363602]
[1625509666155,0.24057544,34006.0,34005.0,0.62460873]
[1625509666607,0.24057544,34006.0,34005.0,0.54363602]
[1625509668112,0.24057544,34006.0,34005.0,1.2497547]
[1625509669216,0.24057544,34006.0,34005.0,0.60263602]
[1625509669718,0.24057544,34006.0,34005.0,2.22320647]
[1625509670071,0.24057544,34006.0,34005.0,2.16420647]
[1625509670270,0.24057544,34006.0,34005.0,2.22320647]
[1625509670925,0.24057544,34010.0,34005.0,2.22320647]
[1625509671423,0.24057544,34010.0,34006.0,0.00348455]
[1625509671523,0.24057544,34010.0,34006.0,0.12148455]
[1625509671626,0.24057544,34010.0,34008.0,0.08104331]
[1625509671724,0.24057544,34010.0,34009.0,0.24057544]
[1625509672928,0.24057544,34010.0,34009.0,0.29957544]
[1625509673482,0.24057544,34010.0,34009.0,0.38050072]
[1625509673831,0.24057544,34010.0,34009.0,0.29957544]
[1625509675333,0.35657544,34010.0,34008.0,0.08096379]
[1625509675433,0.60517544,34010.0,34008.0,0.08096379]
[1625509675536,0.60517544,34010.0,34007.0,0.08100583]
[1625509675632,0.66417544,34010.0,34007.0,0.08100583]
[1625509675733,0.24057544,34008.0,34007.0,0.08100583]
[1625509675833,0.35657544,34008.0,34007.0,0.08100583]
[1625509675934,0.35657544,34008.0,34002.0,0.32169564]
[1625509676036,0.29757544,34008.0,34002.0,0.38069564]
[1625509676136,0.35657544,34008.0,34002.0,0.38069564]
[1625509676237,0.29957544,34008.0,34002.0,0.38069564]
[1625509676335,0.24057544,34008.0,34002.0,0.38069564]
[1625509676433,0.24057544,34008.0,34002.0,0.43969564]
[1625509676534,0.24057544,34008.0,34003.0,0.25084458]
[1625509676635,0.24057544,34008.0,34004.0,0.0871]
[1625509676734,0.08670652,34007.0,34004.0,0.0871]
[1625509676833,0.08670652,34007.0,34004.0,0.2051]
[1625509677033,0.08670652,34007.0,34005.0,0.00348428]
[1625509677134,0.24057544,34008.0,34006.0,2.7507309]
[1625509677335,0.08670797,34015.0,34006.0,2.8097309]
[1625509677446,0.08670797,34015.0,34006.0,2.8687309]
[1625509677543,0.02810797,34015.0,34011.0,0.4128]
[1625509677654,0.59136021,34018.0,34011.0,1.50495]
[1625509677785,0.59136021,34018.0,34014.0,0.72172632]
[1625509677786,0.44646021,34018.0,34014.0,0.72172632]
[1625509677872,1.03857139,34020.0,34014.0,0.72172632]
[1625509677934,1.00957139,34020.0,34018.0,4.905]
[1625509678062,0.90797139,34020.0,34018.0,5.16379]
[1625509678135,0.80857139,34020.0,34018.0,5.28179]
[1625509678233,0.75157139,34020.0,34018.0,5.28179]
[1625509678538,0.057,34029.0,34018.0,5.28179]
[1625509679737,0.057,34029.0,34028.0,0.96230176]
[1625509679836,0.057,34029.0,34028.0,1.22522176]
[1625509679937,0.057,34029.0,34028.0,1.28422176]
[1625509680436,1.20986227,34032.0,34028.0,1.28422176]
[1625509680538,0.057,34031.0,34028.0,1.28422176]
[1625509681789,0.29757544,34031.0,34028.0,1.28422176]
[1625509683947,0.29757544,34031.0,34016.0,1.1265222]
[1625509684046,0.58737544,34031.0,34016.0,1.1855222]
[1625509684148,0.70537544,34031.0,34016.0,1.1855222]
[1625509684799,1.20849775,34030.0,34016.0,0.059]
[1625509684900,0.057,34029.0,34016.0,0.059]
[1625509684999,0.116,34029.0,34016.0,0.059]
[1625509685099,0.175,34029.0,34016.0,0.059]
[1625509685301,1.20853006,34027.0,34016.0,0.059]
[1625509685399,0.057,34026.0,34016.0,0.059]
[1625509685600,0.116,34026.0,34016.0,0.059]
[1625509685750,0.48115088,34017.0,34016.0,0.29957544]
[1625509685851,0.70547088,34017.0,34016.0,0.29957544]
[1625509686053,0.76447088,34017.0,34016.0,0.29957544]
[1625509686453,0.70547088,34017.0,34016.0,0.29957544]
[1625509687102,0.28332,34017.0,34016.0,0.29957544]
[1625509687218,0.057,34023.0,34016.0,0.38687544]
[1625509687314,1.2079679,34027.0,34016.0,0.65024544]
[1625509687423,1.2079679,34027.0,34017.0,0.059]
[1625509687555,1.2079679,34027.0,34017.0,0.06248249]
[1625509687674,0.057,34037.0,34017.0,0.62148249]
[1625509687675,1.20760067,34036.0,34017.0,0.62148249]
[1625509687858,0.05580067,34036.0,34017.0,1.06490749]
[1625509687889,1.38009041,34038.0,34036.0,0.2]
[1625509687890,0.98089108,34038.0,34036.0,0.2]
[1625509687931,0.98089108,34038.0,34037.0,0.5]
[1625509688105,0.80149108,34038.0,34037.0,0.7]
[1625509688146,1.11097123,34041.0,34037.0,0.7]
[1625509688410,0.33627123,34041.0,34037.0,0.7101068]
[1625509688450,0.53284112,34047.0,34037.0,1.1571126]
[1625509688513,1.4095209,34052.0,34038.0,0.5]
[1625509688547,0.48596635,34054.0,34051.0,0.22563255]
[1625509688756,0.40516635,34054.0,34051.0,0.22563255]
[1625509688769,0.28106635,34054.0,34053.0,0.4128]
[1625509688909,0.001,34069.0,34053.0,0.62282593]
[1625509688989,0.001,34069.0,34068.0,0.63843255]
[1625509689015,0.001,34069.0,34068.0,0.97333255]
[1625509689210,2.41183963,34075.0,34068.0,1.06223255]
[1625509689311,2.41183963,34075.0,34074.0,0.06248715]
[1625509689945,2.10643963,34075.0,34074.0,0.29708715]
[1625509689988,1.71933963,34075.0,34074.0,0.37098761]
[1625509690025,3.79003371,34092.0,34074.0,0.87098761]
[1625509690046,0.20654541,34100.0,34074.0,1.31095561]
[1625509690081,0.20654541,34100.0,34074.0,2.27325737]
[1625509690110,0.26554541,34100.0,34091.0,0.82651046]
[1625509690124,0.20654541,34100.0,34091.0,0.82651046]
[1625509690131,0.26554541,34100.0,34095.0,0.1678]
[1625509690219,0.20654541,34100.0,34091.0,0.97824255]
[1625509690316,0.20654541,34100.0,34092.0,0.435798]
[1625509690598,0.9878,34138.0,34091.0,0.33981]
[1625509690662,0.9878,34138.0,34092.0,0.059]
[1625509690779,0.057,34131.0,34092.0,0.059]
[1625509691072,0.0842581,34106.0,34090.0,3.7992]
[1625509691285,0.0252581,34106.0,34092.0,0.22948]
[1625509691409,0.0842581,34106.0,34092.0,0.22948]
[1625509691564,0.0252581,34106.0,34104.0,0.4128]
[1625509691765,0.1432581,34106.0,34105.0,0.72172632]
[1625509691866,0.0842581,34106.0,34105.0,0.96230176]
[1625509692112,0.0842581,34106.0,34105.0,1.02130176]
[1625509692165,0.059,34106.0,34105.0,1.24693431]
[1625509692267,0.24057544,34128.0,34105.0,1.24693431]
[1625509692366,0.9223,34156.0,34105.0,1.24693431]
[1625509692466,0.20400935,34148.0,34121.0,1.14062]
[1625509692666,0.059,34132.0,34121.0,1.14062]
[1625509692768,0.20400935,34148.0,34121.0,1.19962]
[1625509692968,0.059,34132.0,34121.0,1.19962]
[1625509693071,0.118,34132.0,34121.0,1.19962]
[1625509693217,0.118,34132.0,34121.0,0.31182]
[1625509693318,0.9806,34168.0,34121.0,0.31182]
[1625509693417,0.9806,34168.0,34121.0,0.25282]
[1625509693517,0.9806,34168.0,34121.0,0.059]
[1625509693518,1.0396,34168.0,34121.0,0.059]
[1625509693616,1.0986,34168.0,34121.0,0.059]
[1625509693718,1.0986,34168.0,34116.0,0.8878]
[1625509693820,0.24057544,34127.0,34126.0,0.24057544]
[1625509694022,0.29957544,34127.0,34126.0,0.24057544]
[1625509694123,0.24057544,34127.0,34126.0,0.24057544]
[1625509694219,0.24057544,34131.0,34126.0,0.24057544]
[1625509694319,0.24057544,34131.0,34130.0,4.625]
[1625509694420,0.057,34167.0,34130.0,4.625]
[1625509694520,0.9806,34168.0,34130.0,4.93267]
[1625509694619,0.059,34168.0,34130.0,4.93267]
[1625509694718,0.059,34167.0,34130.0,4.93267]
[1625509694919,0.50683185,34140.0,34130.0,4.93267]
[1625509695123,0.62483185,34140.0,34130.0,0.30767]
[1625509695322,0.62483185,34140.0,34126.0,0.24057544]
[1625509695423,0.118,34140.0,34126.0,0.24057544]
[1625509695624,0.118,34140.0,34123.0,0.24057544]
[1625509695726,0.059,34126.0,34106.0,0.9681]